fUSD/lending_fUSD_20250620
["ID","MTS","AMOUNT","RATE_DAILY","PERIOD"]
[366695497,1750415453976,-1554.68,0.00025479,4]
[366695498,1750415453986,-490.0,0.00025479,4]
[366695499,1750415453996,-490.0,0.00025479,4]
[366695500,1750415454006,-490.0,0.00025479,4]
[366695501,1750415454015,-1692.44,0.00025479,4]
[366695502,1750415454025,-757.27,0.00025479,4]
[366695503,1750415454035,-1478.21,0.00025479,4]
[366695504,1750415454044,-1664.77,0.00025479,4]
[366695505,1750415454054,-1643.07,0.00025479,4]
[366695506,1750415454064,-2421.62,0.00025479,4]
[366695507,1750415454073,-1002.75,0.00025479,4]
[366695508,1750415454083,-1171.85,0.00025479,4]
[366695509,1750415454092,-490.0,0.00025479,4]
[366695510,1750415454102,-490.0,0.00025479,4]
[366695511,1750415454112,-1052.23,0.00025479,4]
[366695512,1750415454122,-1203.58,0.00025479,4]
[366695513,1750415454132,-1052.12,0.00025479,4]
[366695514,1750415454142,-1116.54,0.00025479,4]
[366695515,1750415454152,-713.86,0.00025479,4]
[366695516,1750415454162,-576.72,0.00025479,4]
[366695517,1750415454171,-1207.78,0.00025479,4]
[366695518,1750415454181,-1286.94,0.00025479,4]
[366695519,1750415454191,-774.59,0.00025479,4]
[366695520,1750415454200,-689.38,0.00025479,4]
[366695521,1750415454210,-556.07,0.00025479,4]
[366695522,1750415454219,-929.62,0.00025479,4]
[366695523,1750415454229,-540.11,0.00025479,4]
[366695524,1750415454239,-549.5,0.00025479,4]
[366695525,1750415454248,-490.0,0.00025479,4]
[366695526,1750415454258,-1178.9,0.00025479,4]
[366695527,1750415454267,-2120.13,0.00025479,4]
[366695528,1750415454277,-797.21,0.00025479,4]
[366695529,1750415454287,-1657.46,0.00025479,4]
[366695530,1750415454296,-490.0,0.00025479,4]
[366695531,1750415454306,-955.18,0.00025479,4]
[366695532,1750415454315,-1620.75,0.00025479,4]
[366695533,1750415454325,-2608.35,0.00025479,4]
[366695534,1750415454334,-1487.07,0.00025479,4]
[366695535,1750415454344,-2196.02,0.00025479,4]
[366695536,1750415454354,-2048.55,0.00025479,4]
[366695537,1750415454363,-1452.89,0.00025479,4]
[366695538,1750415454372,-490.0,0.00025479,4]
[366695539,1750415454382,-3078.01,0.00025479,4]
[366695540,1750415454391,-729.0,0.00025479,4]
[366695541,1750415454401,-1111.1,0.00025479,4]
[366695542,1750415454411,-726.03,0.00025479,4]
[366695543,1750415454420,-500.0,0.00025479,4]
[366695544,1750415454430,-522.54,0.00025479,4]
[366695545,1750415454439,-1212.05,0.00025479,4]
[366695546,1750415454448,-1510.44,0.00025479,4]
[366695547,1750415454458,-490.0,0.00025479,4]
[366695548,1750415454468,-17404.6,0.00025479,4]
[366695549,1750415454477,-1966.77,0.00025479,4]
[366695550,1750415454486,-499.64,0.00025479,4]
[366695551,1750415454496,-682.61,0.00025479,4]
[366695552,1750415454506,-532.96,0.00025479,4]
[366695553,1750415454515,-490.0,0.00025479,4]
[366695554,1750415454525,-3089.65,0.00025479,4]
[366695555,1750415454535,-300.0,0.00025479,4]
[366695556,1750415454545,-875.85,0.00025479,4]
[366695557,1750415454555,-808.72,0.00025479,4]
[366695558,1750415454565,-490.0,0.00025479,4]
[366695559,1750415454575,-741.55,0.00025479,4]
[366695560,1750415454585,-900.32,0.00025479,4]
[366695561,1750415454594,-490.0,0.00025479,4]
[366695562,1750415454604,-1386.85,0.00025479,4]
[366695563,1750415454613,-2512.9,0.00025479,4]
[366695564,1750415454624,-613.06,0.00025479,4]
[366695565,1750415454634,-1533.1,0.00025479,4]
[366695566,1750415454644,-2444.05,0.00025479,4]
[366695567,1750415454653,-1074.56,0.00025479,4]
[366695568,1750415454663,-759.29,0.00025479,4]
[366695569,1750415454673,-490.0,0.00025479,4]
[366695570,1750415454682,-1702.18,0.00025479,4]
[366695571,1750415454692,-1502.12,0.00025479,4]
[366695572,1750415454702,-2012.16,0.00025479,4]
[366695573,1750415454711,-1936.5,0.00025479,4]
[366695574,1750415454721,-490.0,0.00025479,4]
[366695575,1750415454730,-1141.27,0.00025479,4]
[366695576,1750415454740,-490.0,0.00025479,4]
[366695577,1750415454749,-490.0,0.00025479,4]
[366695578,1750415454759,-242.93586517,0.00025479,2]
[366695579,1750415454769,-271.83649142,0.00025479,2]
[366695580,1750415454779,-565.86850001,0.00025479,2]
[366695581,1750415454788,-622.58,0.00025479,4]
[366695582,1750415454798,-1419.42,0.00025479,4]
[366695583,1750415454807,-490.0,0.00025479,4]
[366695584,1750415454817,-490.0,0.00025479,4]
[366695585,1750415454826,-490.0,0.00025479,4]
[366695586,1750415454836,-1499.27,0.00025479,4]
[366695587,1750415454846,-1525.88,0.00025479,4]
[366695588,1750415454855,-574.02,0.00025479,4]
[366695589,1750415454865,-500.0,0.00025479,4]
[366695590,1750415454875,-1747.3,0.00025479,4]
[366695591,1750415454884,-641.47,0.00025479,4]
[366695592,1750415454894,-490.0,0.00025479,4]
[366695593,1750415454904,-525.8,0.00025479,4]
[366695594,1750415454913,-490.0,0.00025479,4]
[366695595,1750415454923,-490.0,0.00025479,4]
[366695596,1750415454934,-952.09,0.00025479,4]
[366695597,1750415454944,-1078.67,0.00025479,4]
[366695598,1750415454953,-713.18,0.00025479,4]
[366695599,1750415454963,-511.43,0.00025479,4]
[366695600,1750415454973,-490.0,0.0002548,4]
[366695601,1750415454983,-490.0,0.0002548,4]
[366695602,1750415454993,-490.0,0.0002548,4]
[366695603,1750415455003,-490.0,0.0002548,4]
[366695604,1750415455014,-490.0,0.0002548,4]
[366695605,1750415455025,-490.0,0.0002548,4]
[366695606,1750415455039,-490.0,0.0002548,4]
[366695607,1750415455049,-490.0,0.0002548,4]
[366695608,1750415455059,-490.0,0.0002548,4]
[366695609,1750415455071,-490.0,0.0002548,4]
[366695610,1750415455081,-490.0,0.0002548,4]
[366695611,1750415455091,-490.0,0.0002548,4]
[366695612,1750415455102,-271.39,0.0002548,4]
[366695613,1750415455113,-536.23,0.0002548,4]
[366695614,1750415455123,-490.0,0.0002548,4]
[366695615,1750415455133,-442.57779069,0.0002548,4]
[366695616,1750415455144,-513.8,0.0002548,4]
[366695617,1750415455153,-490.0,0.0002548,4]
[366695618,1750415455163,-490.0,0.0002548,4]
[366695619,1750415455329,-490.0,0.0002548,4]
[366695620,1750415455339,-686.65,0.0002548,4]
[366695621,1750415455349,-490.0,0.0002548,4]
[366695622,1750415455358,-490.0,0.0002548,4]
[366695623,1750415455368,-897.84,0.0002548,4]
[366695624,1750415455377,-793.14,0.0002548,4]
[366695625,1750415455387,-490.0,0.0002548,4]
[366695626,1750415455396,-656.19,0.0002548,4]
[366695627,1750415455406,-490.0,0.0002548,4]
[366695628,1750415455415,-624.06,0.0002548,4]
[366695629,1750415455425,-490.0,0.0002548,4]
[366695630,1750415455436,-568.83,0.0002548,4]
[366695631,1750415455446,-402.69,0.0002548,4]
[366695632,1750415455457,-490.0,0.0002548,4]
[366695633,1750415455467,-490.0,0.0002548,4]
[366695634,1750415455477,-490.0,0.0002548,4]
[366695635,1750415455487,-490.0,0.0002548,4]
[366695636,1750415455496,-697.89,0.0002548,4]
[366695637,1750415455506,-490.0,0.0002548,4]
[366695638,1750415455516,-490.0,0.0002548,4]
[366695639,1750415455525,-490.0,0.0002548,4]
[366695640,1750415455535,-724.36,0.0002548,4]
[366695641,1750415455545,-490.0,0.0002548,4]
[366695642,1750415455554,-490.0,0.0002548,4]
[366695643,1750415455564,-490.0,0.0002548,4]
[366695644,1750415455574,-1029.22,0.0002548,4]
[366695645,1750415455583,-490.0,0.0002548,4]
[366695646,1750415455593,-490.0,0.0002548,4]
[366695647,1750415455603,-490.0,0.0002548,4]
[366695648,1750415455613,-490.0,0.0002548,4]
[366695649,1750415455622,-490.0,0.0002548,4]
[366695650,1750415455632,-492.33777695,0.0002548,4]
[366695651,1750415455642,-490.0,0.0002548,4]
[366695652,1750415455652,-490.0,0.0002548,4]
[366695653,1750415455662,-490.0,0.0002548,4]
[366695654,1750415455672,-490.0,0.0002548,4]
[366695655,1750415455683,-490.0,0.0002548,4]
[366695656,1750415455693,-490.0,0.0002548,4]
[366695657,1750415455703,-490.0,0.0002548,4]
[366695658,1750415455714,-490.0,0.0002548,4]
[366695659,1750415455724,-490.0,0.0002548,4]
[366695660,1750415455735,-490.0,0.0002548,4]
[366695661,1750415455745,-817.57,0.0002548,4]
[366695662,1750415455755,-490.0,0.0002548,4]
[366695663,1750415455764,-547.33,0.0002548,4]
[366695664,1750415455774,-490.0,0.0002548,4]
[366695665,1750415455784,-490.0,0.0002548,4]
[366695666,1750415455794,-860.55,0.0002548,4]
[366695667,1750415455803,-490.0,0.0002548,4]
[366695668,1750415455813,-490.0,0.0002548,4]
[366695669,1750415455822,-490.0,0.0002548,4]
[366695670,1750415455831,-490.0,0.0002548,4]
[366695671,1750415455841,-490.0,0.0002548,4]
[366695672,1750415455850,-490.0,0.0002548,4]
[366695673,1750415455860,-490.0,0.0002548,4]
[366695674,1750415455869,-490.0,0.0002548,4]
[366695675,1750415455879,-490.0,0.0002548,4]
[366695676,1750415455889,-217.57120514,0.0002548,4]
[366695677,1750415455898,-490.0,0.0002548,4]
[366695678,1750415455908,-490.0,0.0002548,4]
[366695679,1750415455917,-490.0,0.0002548,4]
[366695680,1750415455927,-490.0,0.0002548,4]
[366695681,1750415455937,-490.0,0.0002548,4]
[366695682,1750415455947,-490.0,0.0002548,4]
[366695683,1750415455956,-490.0,0.0002548,4]
[366695684,1750415455966,-490.0,0.0002548,4]
[366695685,1750415455975,-490.0,0.0002548,4]
[366695686,1750415455985,-490.0,0.0002548,4]
[366695687,1750415455995,-490.0,0.0002548,4]
[366695688,1750415456004,-490.0,0.0002548,4]
[366695689,1750415456014,-336.27166193,0.0002548,4]
[366695690,1750415456023,-490.0,0.0002548,4]
[366695691,1750415456034,-490.0,0.0002548,4]
[366695692,1750415456044,-650.85,0.0002548,4]
[366695693,1750415456057,-490.0,0.0002548,4]
[366695694,1750415456067,-490.0,0.0002548,4]
[366695695,1750415456077,-490.0,0.0002548,4]
[366695696,1750415456087,-490.0,0.0002548,4]
[366695697,1750415456097,-490.0,0.0002548,4]
[366695698,1750415456107,-666.55,0.0002548,4]
[366695699,1750415456117,-490.0,0.0002548,4]
[366695700,1750415456126,-490.0,0.0002548,4]
[366695701,1750415456136,-490.0,0.0002548,4]
[366695702,1750415456146,-490.0,0.0002548,4]
[366695703,1750415456156,-490.0,0.0002548,4]
[366695704,1750415456166,-490.0,0.0002548,4]
[366695705,1750415456176,-490.0,0.0002548,4]
[366695706,1750415456186,-490.0,0.0002548,4]
[366695707,1750415456196,-490.0,0.0002548,4]
[366695708,1750415456206,-490.0,0.0002548,4]
[366695709,1750415456216,-490.0,0.0002548,4]
[366695710,1750415456226,-490.0,0.0002548,4]
[366695711,1750415456237,-490.0,0.0002548,4]
[366695712,1750415456247,-490.0,0.0002548,4]
[366695713,1750415456257,-490.0,0.0002548,4]
[366695714,1750415456267,-497.02,0.0002548,4]
[366695715,1750415456277,-490.0,0.0002548,4]
[366695716,1750415456287,-490.0,0.0002548,4]
[366695717,1750415456297,-490.0,0.0002548,4]
[366695718,1750415456306,-250.4070476,0.0002548,4]
[366695719,1750415456317,-561.45,0.0002548,4]
[366695720,1750415456327,-490.0,0.0002548,4]
[366695721,1750415456338,-490.0,0.0002548,4]
[366695722,1750415456350,-490.0,0.0002548,4]
[366695723,1750415456360,-490.0,0.0002548,4]
[366695724,1750415456370,-490.0,0.0002548,4]
[366695725,1750415456380,-490.0,0.0002548,4]
[366695726,1750415456391,-673.68,0.0002548,4]
[366695727,1750415456402,-490.0,0.0002548,4]
[366695728,1750415456412,-490.0,0.0002548,4]
[366695729,1750415456422,-490.0,0.0002548,4]
[366695730,1750415456432,-490.0,0.0002548,4]
[366695731,1750415456442,-484.79780351,0.0002548,4]
[366695732,1750415456453,-798.5,0.0002548,4]
[366695733,1750415456463,-490.0,0.0002548,4]
[366695734,1750415456472,-490.0,0.0002548,4]
[366695735,1750415456482,-490.0,0.0002548,4]
[366695736,1750415456491,-490.0,0.0002548,4]
[366695737,1750415456501,-490.0,0.0002548,4]
[366695738,1750415456512,-490.0,0.0002548,4]
[366695739,1750415456521,-814.97,0.0002548,4]
[366695740,1750415456531,-490.0,0.0002548,4]
[366695741,1750415456541,-490.0,0.0002548,4]
[366695742,1750415456551,-997.34,0.0002548,4]
[366695743,1750415456560,-792.52,0.0002548,4]
[366695744,1750415456570,-490.0,0.0002548,4]
[366695745,1750415456580,-490.0,0.0002548,4]
[366695746,1750415456590,-749.65,0.0002548,4]
[366695747,1750415456600,-490.0,0.0002548,4]
[366695748,1750415456610,-490.0,0.0002548,4]
[366695749,1750415456620,-490.0,0.0002548,4]
[366695750,1750415456631,-490.0,0.0002548,4]
[366695751,1750415456642,-661.75,0.0002548,4]
[366695752,1750415456652,-490.0,0.0002548,4]
[366695753,1750415456662,-508.02,0.0002548,4]
[366695754,1750415456671,-490.0,0.0002548,4]
[366695755,1750415456681,-490.0,0.0002548,4]
[366695756,1750415456691,-490.0,0.0002548,4]
[366695757,1750415456701,-490.0,0.0002548,4]
[366695758,1750415456711,-490.0,0.0002548,4]
[366695759,1750415456721,-490.0,0.0002548,4]
[366695760,1750415456731,-490.0,0.0002548,4]
[366695761,1750415456743,-490.0,0.0002548,4]
[366695762,1750415456752,-490.0,0.0002548,4]
[366695763,1750415456762,-490.0,0.0002548,4]
[366695764,1750415456771,-490.0,0.0002548,4]
[366695765,1750415456781,-490.0,0.0002548,4]
[366695766,1750415456791,-490.0,0.0002548,4]
[366695767,1750415456800,-490.0,0.0002548,4]
[366695768,1750415456810,-686.43,0.0002548,4]
[366695769,1750415456821,-490.0,0.0002548,4]
[366695770,1750415456831,-490.0,0.0002548,4]
[366695771,1750415456841,-490.0,0.0002548,4]
[366695772,1750415456851,-620.11,0.0002548,4]
[366695773,1750415456861,-490.0,0.0002548,4]
[366695774,1750415456871,-490.0,0.0002548,4]
[366695775,1750415456881,-490.0,0.0002548,4]
[366695776,1750415456891,-591.54,0.0002548,4]
[366695777,1750415456901,-490.0,0.0002548,4]
[366695778,1750415456913,-490.0,0.0002548,4]
[366695779,1750415456924,-490.0,0.0002548,4]
[366695780,1750415456935,-490.0,0.0002548,4]
[366695781,1750415456945,-513.53,0.0002548,4]
[366695782,1750415456955,-490.0,0.0002548,4]
[366695783,1750415456964,-490.0,0.0002548,4]
[366695784,1750415456974,-490.0,0.0002548,4]
[366695785,1750415456985,-490.0,0.0002548,4]
[366695786,1750415456994,-490.0,0.0002548,4]
[366695787,1750415457005,-490.0,0.0002548,4]
[366695788,1750415457014,-490.0,0.0002548,4]
[366695789,1750415457024,-490.0,0.0002548,4]
[366695790,1750415457034,-490.0,0.0002548,4]
[366695791,1750415457044,-490.0,0.0002548,4]
[366695792,1750415457057,-513.94,0.0002548,4]
[366695793,1750415457067,-490.0,0.0002548,4]
[366695794,1750415457077,-490.0,0.0002548,4]
[366695795,1750415457087,-490.0,0.0002548,4]
[366695796,1750415457096,-490.0,0.0002548,4]
[366695797,1750415457107,-593.05,0.0002548,4]
[366695798,1750415457117,-490.0,0.0002548,4]
[366695799,1750415457127,-490.0,0.0002548,4]
[366695800,1750415457137,-490.0,0.0002548,4]
[366695801,1750415457147,-885.97,0.0002548,4]
[366695802,1750415457156,-663.64,0.0002548,4]
[366695803,1750415457166,-490.0,0.0002548,4]
[366695804,1750415457176,-490.0,0.0002548,4]
[366695805,1750415457192,-490.0,0.0002548,4]
[366695806,1750415457202,-490.0,0.0002548,4]
[366695807,1750415457212,-490.0,0.0002548,4]
[366695808,1750415457223,-490.0,0.0002548,4]
[366695809,1750415457232,-490.0,0.0002548,4]
[366695810,1750415457242,-852.86,0.0002548,4]
[366695811,1750415457252,-490.0,0.0002548,4]
[366695812,1750415457262,-490.0,0.0002548,4]
[366695813,1750415457272,-490.0,0.0002548,4]
[366695814,1750415457282,-490.0,0.0002548,4]
[366695815,1750415457292,-490.0,0.0002548,4]
[366695816,1750415457303,-490.0,0.0002548,4]
[366695817,1750415457695,-490.0,0.0002548,4]
[366695818,1750415457706,-719.33,0.0002548,4]
[366695819,1750415457717,-490.0,0.0002548,4]
[366695820,1750415457727,-490.0,0.0002548,4]
[366695821,1750415457737,-256.879633,0.0002548,4]
[366695822,1750415457747,-490.0,0.0002548,4]
[366695823,1750415457757,-992.43,0.0002548,4]
[366695824,1750415457776,-500.00251786,0.0002548,4]
[366695825,1750415457792,-490.0,0.0002548,4]
[366695826,1750415457802,-490.0,0.0002548,4]
[366695827,1750415457814,-490.0,0.0002548,4]
[366695828,1750415457824,-490.0,0.0002548,4]
[366695829,1750415457835,-2831.45,0.0002548,4]
[366695830,1750415457845,-490.0,0.0002548,4]
[366695831,1750415457855,-490.0,0.0002548,4]
[366695832,1750415457866,-1176.63,0.0002548,4]
[366695833,1750415457877,-835.13,0.0002548,4]
[366695834,1750415457889,-640.77,0.0002548,4]
[366695835,1750415457900,-759.69,0.0002548,4]
[366695836,1750415457910,-495.19,0.0002548,4]
[366695837,1750415457921,-490.0,0.0002548,4]
[366695838,1750415457932,-490.0,0.0002548,4]
[366695839,1750415457943,-490.0,0.0002548,4]
[366695840,1750415457954,-620.7,0.0002548,4]
[366695841,1750415457964,-490.0,0.0002548,4]
[366695842,1750415457974,-490.0,0.0002548,4]
[366695843,1750415457984,-490.0,0.0002548,4]
[366695844,1750415457995,-676.1,0.0002548,4]
[366695845,1750415458007,-490.0,0.0002548,4]
[366695846,1750415458016,-490.0,0.0002548,4]
[366695847,1750415458027,-490.0,0.0002548,4]
[366695848,1750415458038,-490.0,0.0002548,4]
[366695849,1750415458048,-646.89,0.0002548,4]
[366695850,1750415458058,-490.0,0.0002548,4]
[366695851,1750415458070,-692.86,0.0002548,4]
[366695852,1750415458082,-490.0,0.0002548,4]
[366695853,1750415458092,-500.0,0.0002548,4]
[366695854,1750415458102,-490.0,0.0002548,4]
[366695855,1750415458114,-896.01,0.0002548,4]
[366695856,1750415458124,-490.0,0.0002548,4]
[366695857,1750415458135,-817.65,0.0002548,4]
[366695858,1750415458145,-490.0,0.0002548,4]
[366695859,1750415458155,-490.0,0.0002548,4]
[366695860,1750415458166,-490.0,0.0002548,4]
[366695861,1750415458177,-490.0,0.0002548,4]
[366695862,1750415458187,-490.0,0.0002548,4]
[366695863,1750415458198,-563.12,0.0002548,4]
[366695864,1750415458208,-490.0,0.0002548,4]
[366695865,1750415458218,-516.42,0.0002548,4]
[366695866,1750415458229,-496.54,0.0002548,4]
[366695867,1750415458240,-1292.76,0.0002548,4]
[366695868,1750415458250,-490.0,0.0002548,4]
[366695869,1750415458260,-490.0,0.0002548,4]
[366695870,1750415458271,-490.0,0.0002548,4]
[366695871,1750415458282,-490.0,0.0002548,4]
[366695872,1750415458292,-490.0,0.0002548,4]
[366695873,1750415458303,-1110.49,0.0002548,4]
[366695874,1750415458313,-314.81237773,0.0002548,4]
[366695875,1750415458325,-490.0,0.0002548,4]
[366695876,1750415458335,-490.0,0.0002548,4]
[366695877,1750415458346,-490.0,0.0002548,4]
[366695878,1750415458356,-548.1,0.0002548,4]
[366695879,1750415458367,-490.0,0.0002548,4]
[366695880,1750415458378,-1116.64,0.0002548,4]
[366695881,1750415458389,-490.0,0.0002548,4]
[366695882,1750415458400,-490.0,0.0002548,4]
[366695883,1750415458411,-490.0,0.0002548,4]
[366695884,1750415458422,-3388.66,0.0002548,4]
[366695885,1750415458433,-490.0,0.0002548,4]
[366695886,1750415458443,-490.0,0.0002548,4]
[366695887,1750415458453,-490.0,0.0002548,4]
[366695888,1750415458463,-490.0,0.0002548,4]
[366695889,1750415458474,-490.0,0.0002548,4]
[366695890,1750415458485,-7527.62,0.0002548,4]
[366695891,1750415458495,-7882.79,0.0002548,4]
[366695892,1750415458505,-535.04863939,0.0002548,4]
[366695893,1750415458515,-575.2963875,0.0002548,4]
[366695894,1750415458525,-490.0,0.0002548,4]
[366695895,1750415458537,-741.74,0.0002548,4]
[366695896,1750415458548,-557.61,0.0002548,4]
[366695897,1750415458558,-490.0,0.0002548,4]
[366695898,1750415458568,-716.85,0.0002548,4]
[366695899,1750415458578,-490.0,0.0002548,4]
[366695900,1750415458588,-490.0,0.0002548,4]
[366695901,1750415458598,-3776.02,0.0002548,4]
[366695902,1750415458608,-490.0,0.0002548,4]
[366695903,1750415458618,-490.0,0.0002548,4]
[366695904,1750415458628,-5317.42,0.0002548,4]
[366695905,1750415458638,-490.0,0.0002548,4]
[366695906,1750415458648,-490.0,0.0002548,4]
[366695907,1750415458658,-520.18799566,0.0002548,4]
[366695908,1750415458670,-508.46,0.0002548,4]
[366695909,1750415458680,-490.0,0.0002548,4]
[366695910,1750415458690,-490.0,0.0002548,4]
[366695911,1750415458702,-490.0,0.0002548,4]
[366695912,1750415458715,-490.0,0.0002548,4]
[366695913,1750415458725,-9880.35,0.0002548,4]
[366695914,1750415458736,-670.44,0.0002548,4]
[366695915,1750415458747,-305.14433932,0.0002548,4]
[366695916,1750415458758,-490.0,0.0002548,4]
[366695917,1750415458768,-6404.69,0.0002548,4]
[366695918,1750415458779,-490.0,0.0002548,4]
[366695919,1750415458789,-490.0,0.0002548,4]
[366695920,1750415458799,-2380.6,0.0002548,4]
[366695921,1750415458809,-510.99,0.0002548,4]
[366695922,1750415458819,-691.59,0.0002548,4]
[366695923,1750415458829,-490.0,0.0002548,4]
[366695924,1750415458839,-1844.2,0.0002548,4]
[366695925,1750415458849,-490.0,0.0002548,4]
[366695926,1750415458858,-2450.17,0.0002548,4]
[366695927,1750415458868,-490.0,0.0002548,4]
[366695928,1750415458879,-490.0,0.0002548,4]
[366695929,1750415458889,-490.0,0.0002548,4]
[366695930,1750415458899,-490.0,0.0002548,4]
[366695931,1750415458909,-490.0,0.0002548,4]
[366695932,1750415458919,-17540.73,0.0002548,4]
[366695933,1750415458929,-1227.01,0.0002548,4]
[366695934,1750415458940,-490.0,0.0002548,4]
[366695935,1750415458950,-490.0,0.0002548,4]
[366695936,1750415458961,-490.0,0.0002548,4]
[366695937,1750415458971,-490.0,0.0002548,4]
[366695938,1750415458981,-5948.54,0.0002548,4]
[366695939,1750415458991,-957.68,0.0002548,4]
[366695940,1750415459001,-490.0,0.0002548,4]
[366695941,1750415459011,-490.0,0.0002548,4]
[366695942,1750415459020,-490.0,0.0002548,4]
[366695943,1750415459030,-363.75305282,0.0002548,4]
[366695944,1750415459040,-490.0,0.0002548,4]
[366695945,1750415459052,-5372.22,0.0002548,4]
[366695946,1750415459063,-490.0,0.0002548,4]
[366695947,1750415459073,-1594.4,0.0002548,4]
[366695948,1750415459083,-490.0,0.0002548,4]
[366695949,1750415459095,-490.0,0.0002548,4]
[366695950,1750415459105,-18649.49,0.0002548,4]
[366695951,1750415459115,-490.0,0.0002548,4]
[366695952,1750415459125,-662.4,0.0002548,4]
[366695953,1750415459136,-11431.71,0.0002548,4]
[366695954,1750415459146,-490.0,0.0002548,4]
[366695955,1750415459156,-500.0,0.0002548,4]
[366695956,1750415459166,-490.0,0.0002548,4]
[366695957,1750415459176,-2766.75,0.0002548,4]
[366695958,1750415459186,-490.0,0.0002548,4]
[366695959,1750415459197,-1639.8,0.0002548,4]
[366695960,1750415459206,-490.0,0.0002548,4]
[366695961,1750415459217,-490.0,0.0002548,4]
[366695962,1750415459226,-521.31,0.0002548,4]
[366695963,1750415459237,-490.0,0.0002548,4]
[366695964,1750415459246,-1452.7,0.0002548,4]
[366695965,1750415459256,-490.0,0.0002548,4]
[366695966,1750415459266,-766.28,0.0002548,4]
[366695967,1750415459276,-1528.81,0.0002548,4]
[366695968,1750415459286,-2442.89,0.0002548,4]
[366695969,1750415459296,-490.0,0.0002548,4]
[366695970,1750415459306,-490.0,0.0002548,4]
[366695971,1750415459316,-490.0,0.0002548,4]
[366695972,1750415459325,-974.85,0.0002548,4]
[366695973,1750415459335,-655.26,0.0002548,4]
[366695974,1750415459345,-490.0,0.0002548,4]
[366695975,1750415459355,-490.0,0.0002548,4]
[366695976,1750415459365,-6155.02,0.0002548,4]
[366695977,1750415459375,-490.0,0.0002548,4]
[366695978,1750415459385,-1546.64,0.0002548,4]
[366695979,1750415459395,-490.0,0.0002548,4]
[366695980,1750415459405,-2556.54,0.0002548,4]
[366695981,1750415459415,-490.0,0.0002548,4]
[366695982,1750415459425,-490.0,0.0002548,4]
[366695983,1750415459435,-1698.38,0.0002548,4]
[366695984,1750415459444,-7770.54,0.0002548,4]
[366695985,1750415459455,-490.0,0.0002548,4]
[366695986,1750415459465,-490.0,0.0002548,4]
[366695987,1750415459475,-490.0,0.0002548,4]
[366695988,1750415459486,-490.0,0.0002548,4]
[366695989,1750415459496,-490.0,0.0002548,4]
[366695990,1750415459506,-565.57,0.0002548,4]
[366695991,1750415459517,-1078.51,0.0002548,4]
[366695992,1750415459527,-490.0,0.0002548,4]
[366695993,1750415459537,-490.0,0.0002548,4]
[366695994,1750415459547,-490.0,0.0002548,4]
[366695995,1750415459557,-650.93,0.0002548,4]
[366695996,1750415459567,-241.43054752,0.0002548,2]